[Event "POL-chT 2 Liga 2019"]
[Site "Poronin"]
[Date "2019.09.12"]
[Round "6.44"]
[White "Raczynski, Krzysztof"]
[Black "Kaczmarek, Arkadiusz"]
[Result "1-0"]
[ECO "C00"]
[WhiteElo "2244"]
[BlackElo "2061"]
[Annotator "NA"]
[PlyCount "115"]
[EventDate "2019.09.07"]
[EventType "team-tourn"]
[EventCountry "POL"]
[SourceTitle "playchess.com"]
[Source "ChessBase"]
[SourceQuality "1"]
[TimeControl "40/5400+30:1800+30"]

1. e4 {[%emt 0:00:00]} e6 {[%emt 0:00:00]} 2. d3 {[%emt 0:00:00]} d5 {[%emt 0:00:00]} 3. Nd2 {[%emt 0:00:09]} c5 {[%emt 0:00:15]} 4. Ngf3 {[%emt 0:00:09]} Nf6 {[%emt 0:00:19]} 5. g3 {[%emt 0:00:22]} Nc6 {[%emt 0:00:26]} 6. Bg2 {[%emt 0:00:18]} Be7 {[%emt 0:00:14]} 7. O-O {[%emt 0:00:08]} O-O {[%emt 0:00:19]} 8. e5 {[%emt 0:01:24]} Nd7 {[%emt 0:00:20]} 9. Re1 {[%emt 0:00:08]} b5 {[%emt 0:00:16]} 10. Nf1 {[%emt 0:01:50]} a5 {[%emt 0:00:12]} 11. h4 {[%emt 0:02:03]} b4 {[%emt 0:00:09]} 12. h5 {[%emt 0:05:31]} a4 {[%emt 0:00:26]} 13. h6 {[%emt 0:00:41]} g6 {[%emt 0:00:11]} 14. a3 {[%emt 0:01:59]} bxa3 {[%emt 0:00:13]} 15. bxa3 {[%emt 0:00:30]} Ba6 {[%emt 0:00:16]} 16. Bf4 {[%emt 0:03:00]} Rb8 {[%emt 0:06:21]} 17. Ne3 {[%emt 0:13:36]} Rb6 {[%emt 0:17:07]} 18. Ng4 {[%emt 0:04:15]} Nd4 {[%emt 0:15:51]} 19. Nxd4 {[%emt 0:10:32]} cxd4 {[%emt 0:00:03]} 20. Nh2 {[%emt 0:00:23]} Nb8 {[%emt 0:17:12]} 21. Nf3 {[%emt 0:01:34]} Nc6 {[%emt 0:00:15]} 22. Qd2 {[%emt 0:01:53]} Qd7 {[%emt 0:01:00]} 23. Bg5 {[%emt 0:04:46]} Rc8 {[%emt 0:11:00]} 24. Bxe7 {[%emt 0:01:06]} Qxe7 {[%emt 0:00:35]} 25. Qf4 {[%emt 0:06:18]} Rb2 {[%emt 0:02:02]} 26. Rec1 {[%emt 0:01:20]} Qc5 {[%emt 0:03:18]} 27. Bh3 {[%emt 0:09:44]} Qe7 {[%emt 0:09:37]} 28. Kg2 {[%emt 0:13:31]} Kf8 {[%emt 0:10:54]} 29. Nxd4 {[%emt 0:05:06]} Nxd4 {[%emt 0:00:30]} 30. Qxd4 {[%emt 0:00:02]} Rcxc2 {[%emt 0:00:37]} 31. Rxc2 {[%emt 0:02:12]} Rxc2 {[%emt 0:00:10]} 32. Rb1 {[%emt 0:00:34]} Qc5 {[%emt 0:05:10]} 33. Qf4 {[%emt 0:02:39]} Bc8 {[%emt 0:00:01]} 34. Rb8 {[%emt 0:01:58]} Ke8 {[%emt 0:00:27]} 35. Qxa4+ {[%emt 0:01:05]} Kd8 {[%emt 0:00:01]} 36. Qf4 {[%emt 0:04:21]} Qc7 {[%emt 0:01:23]} 37. Qf6+ {[%emt 0:01:43]} Qe7 {[%emt 0:00:01]} 38. Qf4 {[%emt 0:01:01]} Kc7 {[%emt 0:01:11]} 39. Rb1 {[%emt 0:00:53]} Bb7 {[%emt 0:00:30]} 40. d4 {[%emt 0:00:00]} Ba6 {[%emt 0:00:00]} 41. Rc1 {[%emt 0:07:18]} Rxc1 {[%emt 0:10:58]} 42. Qxc1+ {[%emt 0:00:02]} Bc4 {[%emt 0:00:11]} 43. Qc3 {[%emt 0:03:56]} Kb6 {[%emt 0:01:13]} 44. Qc1 {[%emt 0:08:07]} Bb5 {[%emt 0:06:48]} 45. Bg4 {[%emt 0:00:33]} Bc4 {[%emt 0:03:05]} 46. Bd1 {[%emt 0:00:20]} Ka6 {[%emt 0:05:42]} 47. Ba4 {[%emt 0:02:24]} Ka5 {[%emt 0:01:00]} 48. Bc2 {[%emt 0:00:09]} Ka6 {[%emt 0:00:45]} 49. Bd1 {[%emt 0:02:10]} Qb7 {[%emt 0:03:33]} 50. Qc2 {[%emt 0:01:24]} Qe7 {[%emt 0:01:51]} 51. Qa4+ {[%emt 0:02:18]} Kb6 {[%emt 0:00:01]} 52. Qa8 {[%emt 0:01:36]} Qg5 {[%emt 0:00:50]} 53. Qb8+ {[%emt 0:00:25]} Ka6 {[%emt 0:00:14]} 54. Qd6+ {[%emt 0:00:29]} Ka5 {[%emt 0:00:40]} 55. Qc7+ {[%emt 0:00:35]} Kb5 {[%emt 0:01:06]} 56. Qb7+ {[%emt 0:00:12]} Ka5 {[%emt 0:00:10]} 57. Qa7+ {[%emt 0:00:10]} Kb5 {[%emt 0:00:07]} 58. Ba4# {[%emt 0:00:04]} 1-0

[Event "POL-chT 2 Liga 2019"]
[Site "Poronin"]
[Date "2019.09.12"]
[Round "6.45"]
[White "Malczyk, Radoslaw"]
[Black "Bardeli, Lukasz"]
[Result "0-1"]
[ECO "D91"]
[WhiteElo "2072"]
[BlackElo "2144"]
[Annotator "NA"]
[PlyCount "66"]
[EventDate "2019.09.07"]
[EventType "team-tourn"]
[EventCountry "POL"]
[SourceTitle "playchess.com"]
[Source "ChessBase"]
[SourceQuality "1"]
[TimeControl "40/5400+30:1800+30"]

1. d4 {[%emt 0:00:00]} Nf6 {[%emt 0:00:00]} 2. Nf3 {[%emt 0:00:00]} g6 {[%emt 0:00:12]} 3. c4 {[%emt 0:00:05]} Bg7 {[%emt 0:00:13]} 4. Nc3 {[%emt 0:00:09]} d5 {[%emt 0:00:09]} 5. Bg5 {[%emt 0:00:14]} Ne4 {[%emt 0:00:19]} 6. cxd5 {[%emt 0:00:10]} Nxg5 {[%emt 0:00:38]} 7. Nxg5 {[%emt 0:00:07]} e6 {[%emt 0:00:50]} 8. Qd2 {[%emt 0:00:10]} h6 {[%emt 0:03:11]} 9. Nge4 {[%emt 0:05:07]} exd5 {[%emt 0:01:45]} 10. Nc5 {[%emt 0:01:14]} O-O {[%emt 0:09:16]} 11. e3 {[%emt 0:00:12]} b6 {[%emt 0:03:00]} 12. Nb3 {[%emt 0:00:51]} a5 {[%emt 0:03:35]} 13. a4 {[%emt 0:01:49]} Nc6 {[%emt 0:02:08]} 14. Be2 {[%emt 0:00:07]} Nb4 {[%emt 0:01:00]} 15. O-O {[%emt 0:00:17]} Bf5 {[%emt 0:01:07]} 16. Rfc1 {[%emt 0:00:08]} Qe7 {[%emt 0:10:00]} 17. Bf3 {[%emt 0:08:22]} Rfd8 {[%emt 0:01:53]} 18. Na2 {[%emt 0:06:46]} Nd3 {[%emt 0:10:54]} 19. Rc3 {[%emt 0:00:12]} c5 {[%emt 0:01:03]} 20. Nac1 {[%emt 0:00:35]} Nxc1 {[%emt 0:02:17]} 21. Nxc1 {[%emt 0:01:15]} cxd4 {[%emt 0:07:25]} 22. Rb3 {[%emt 0:00:21]} dxe3 {[%emt 0:01:06]} 23. fxe3 {[%emt 0:00:45]} Rac8 {[%emt 0:05:33]} 24. Nd3 {[%emt 0:07:07]} Be4 {[%emt 0:03:47]} 25. Rc1 {[%emt 0:04:29]} Bxf3 {[%emt 0:00:23]} 26. Rxc8 {[%emt 0:02:24]} Rxc8 {[%emt 0:00:11]} 27. gxf3 {[%emt 0:00:05]} Qg5+ {[%emt 0:00:12]} 28. Kf1 {[%emt 0:02:22]} d4 {[%emt 0:00:38]} 29. f4 {[%emt 0:01:25]} Qd5 {[%emt 0:00:17]} 30. Rxb6 {[%emt 0:00:44]} dxe3 {[%emt 0:02:40]} 31. Qxe3 {[%emt 0:00:48]} Bd4 {[%emt 0:00:36]} 32. Qh3 {[%emt 0:00:10]} Qh1+ {[%emt 0:00:14]} 33. Ke2 {[%emt 0:00:02]} Rc2# {[%emt 0:00:09]} 0-1

[Event "POL-chT 2 Liga 2019"]
[Site "Poronin"]
[Date "2019.09.12"]
[Round "6.46"]
[White "Butyrowski, Marcel"]
[Black "Hrymowicz, Artur"]
[Result "1-0"]
[ECO "A50"]
[WhiteElo "1873"]
[BlackElo "2021"]
[Annotator "NA"]
[PlyCount "70"]
[EventDate "2019.09.07"]
[EventType "team-tourn"]
[EventCountry "POL"]
[SourceTitle "playchess.com"]
[Source "ChessBase"]
[SourceQuality "1"]
[TimeControl "40/5400+30:1800+30"]

1. d4 {[%emt 0:00:00]} Nf6 {[%emt 0:00:00]} 2. c4 {[%emt 0:00:00]} b6 {[%emt 0:00:00]} 3. f3 {[%emt 0:00:00]} Nc6 {[%emt 0:01:08]} 4. Nc3 {[%emt 0:00:20]} e5 {[%emt 0:02:00]} 5. d5 {[%emt 0:00:20]} Na5 {[%emt 0:01:21]} 6. e4 Nb7 {[%emt 0:00:51]} 7. Bd3 {[%emt 0:03:17]} Bc5 {[%emt 0:07:33]} 8. Nge2 {[%emt 0:04:21]} a5 {[%emt 0:01:44]} 9. Rb1 {[%emt 0:01:00]} O-O {[%emt 0:01:13]} 10. a3 {[%emt 0:01:01]} Re8 {[%emt 0:19:59]} 11. b4 {[%emt 0:01:13]} Bf8 {[%emt 0:00:31]} 12. O-O {[%emt 0:02:06]} g6 {[%emt 0:16:17]} 13. Be3 {[%emt 0:03:50]} Nh5 {[%emt 0:01:48]} 14. Qd2 {[%emt 0:04:27]} d6 {[%emt 0:02:37]} 15. g4 {[%emt 0:06:14]} Ng7 {[%emt 0:00:54]} 16. Ng3 {[%emt 0:00:40]} Bd7 {[%emt 0:06:22]} 17. Nce2 {[%emt 0:06:25]} Qc8 {[%emt 0:04:05]} 18. Kh1 {[%emt 0:03:39]} Be7 {[%emt 0:06:22]} 19. g5 {[%emt 0:03:18]} Rf8 {[%emt 0:01:09]} 20. f4 {[%emt 0:02:38]} exf4 {[%emt 0:02:15]} 21. Nxf4 {[%emt 0:02:10]} f6 {[%emt 0:05:13]} 22. gxf6 {[%emt 0:08:57]} Bxf6 {[%emt 0:00:02]} 23. c5 {[%emt 0:00:53]} bxc5 {[%emt 0:01:39]} 24. bxc5 {[%emt 0:00:14]} Nxc5 {[%emt 0:00:27]} 25. Bxc5 {[%emt 0:00:30]} dxc5 {[%emt 0:00:02]} 26. Bc4 {[%emt 0:00:27]} Kh8 {[%emt 0:13:43]} 27. d6 {[%emt 0:07:18]} Ne6 {[%emt 0:03:31]} 28. Nd5 {[%emt 0:03:03]} Be5 {[%emt 0:00:42]} 29. dxc7 {[%emt 0:01:46]} Rxf1+ {[%emt 0:00:29]} 30. Rxf1 {[%emt 0:00:25]} Ra7 {[%emt 0:00:31]} 31. Ne7 {[%emt 0:06:59]} Qe8 {[%emt 0:00:29]} 32. Bxe6 {[%emt 0:01:02]} Bxe6 {[%emt 0:00:12]} 33. Qd8 {[%emt 0:00:22]} Ra8 {[%emt 0:00:15]} 34. Rd1 {[%emt 0:02:28]} Bxc7 {[%emt 0:01:02]} 35. Qxc7 {[%emt 0:00:13]} Qa4 {[%emt 0:01:04]} 1-0

[Event "POL-chT 2 Liga 2019"]
[Site "Poronin"]
[Date "2019.09.12"]
[Round "6.47"]
[White "Rak, Tomasz"]
[Black "Wojdak, Jan"]
[Result "0-1"]
[ECO "D46"]
[WhiteElo "1957"]
[BlackElo "1973"]
[Annotator "NA"]
[PlyCount "146"]
[EventDate "2019.09.07"]
[EventType "team-tourn"]
[EventCountry "POL"]
[SourceTitle "playchess.com"]
[Source "ChessBase"]
[SourceQuality "1"]
[TimeControl "40/5400+30:1800+30"]

1. Nf3 {[%emt 0:00:00]} d5 {[%emt 0:00:00]} 2. d4 {[%emt 0:00:00]} Nf6 {[%emt 0:00:14]} 3. c4 {[%emt 0:00:00]} c6 {[%emt 0:00:53]} 4. Nc3 {[%emt 0:01:13]} e6 {[%emt 0:04:13]} 5. e3 {[%emt 0:01:01]} Bd6 {[%emt 0:00:12]} 6. Bd3 {[%emt 0:00:44]} Nbd7 {[%emt 0:00:07]} 7. e4 {[%emt 0:04:25]} dxe4 {[%emt 0:00:12]} 8. Nxe4 {[%emt 0:00:08]} Nxe4 {[%emt 0:00:08]} 9. Bxe4 {[%emt 0:00:17]} h6 {[%emt 0:04:06]} 10. O-O {[%emt 0:02:16]} O-O {[%emt 0:00:07]} 11. Re1 {[%emt 0:07:31]} Nf6 {[%emt 0:02:46]} 12. Bc2 {[%emt 0:01:00]} c5 {[%emt 0:00:22]} 13. dxc5 {[%emt 0:12:25]} Bxc5 {[%emt 0:00:06]} 14. Be3 {[%emt 0:00:49]} Bxe3 {[%emt 0:09:22]} 15. Rxe3 {[%emt 0:00:03]} Qc7 {[%emt 0:00:09]} 16. Ne5 {[%emt 0:05:32]} b6 {[%emt 0:06:31]} 17. Rc1 {[%emt 0:03:14]} Bb7 {[%emt 0:00:27]} 18. Qe2 {[%emt 0:06:41]} Rfd8 {[%emt 0:01:51]} 19. b4 {[%emt 0:04:35]} a5 {[%emt 0:09:46]} 20. a3 {[%emt 0:00:36]} axb4 {[%emt 0:04:02]} 21. axb4 {[%emt 0:00:02]} Rd4 {[%emt 0:07:46]} 22. Rd1 {[%emt 0:01:53]} Rxd1+ {[%emt 0:16:56]} 23. Qxd1 {[%emt 0:01:02]} Rd8 {[%emt 0:00:23]} 24. Rd3 {[%emt 0:01:24]} Rxd3 {[%emt 0:00:59]} 25. Nxd3 {[%emt 0:02:37]} Qxc4 {[%emt 0:01:24]} 26. Nc5 {[%emt 0:01:30]} Bd5 {[%emt 0:01:07]} 27. Nd3 {[%emt 0:01:59]} Ne4 {[%emt 0:08:36]} 28. h3 {[%emt 0:03:03]} Qd4 {[%emt 0:02:05]} 29. Qe1 {[%emt 0:01:31]} Qc3 {[%emt 0:02:00]} 30. Qxc3 {[%emt 0:03:10]} Nxc3 {[%emt 0:00:04]} 31. Ne5 {[%emt 0:00:44]} Ne2+ {[%emt 0:03:53]} 32. Kf1 {[%emt 0:02:38]} Nd4 {[%emt 0:00:10]} 33. Bd3 {[%emt 0:03:21]} Nc6 {[%emt 0:00:17]} 34. Nxc6 {[%emt 0:00:55]} Bxc6 {[%emt 0:00:03]} 35. g3 {[%emt 0:00:20]} Kf8 {[%emt 0:00:03]} 36. Ke2 {[%emt 0:00:16]} Ke7 {[%emt 0:00:04]} 37. f4 Kd6 {[%emt 0:00:07]} 38. Ke3 {[%emt 0:00:56]} f6 {[%emt 0:00:42]} 39. h4 {[%emt 0:01:12]} e5 {[%emt 0:01:43]} 40. Bg6 {[%emt 0:00:00]} Bd7 {[%emt 0:00:00]} 41. Kd3 {[%emt 0:04:48]} Be6 {[%emt 0:03:25]} 42. Be4 {[%emt 0:03:05]} exf4 {[%emt 0:12:00]} 43. gxf4 {[%emt 0:00:02]} g5 {[%emt 0:01:01]} 44. fxg5 {[%emt 0:00:31]} fxg5 {[%emt 0:00:04]} 45. hxg5 {[%emt 0:00:21]} hxg5 {[%emt 0:00:04]} 46. Kd4 {[%emt 0:00:17]} g4 {[%emt 0:01:29]} 47. Bb7 {[%emt 0:01:44]} g3 {[%emt 0:13:41]} 48. Ke3 {[%emt 0:00:28]} Bd5 {[%emt 0:02:19]} 49. Bc8 {[%emt 0:00:33]} Ke5 {[%emt 0:04:06]} 50. Bd7 {[%emt 0:00:20]} g2 {[%emt 0:01:34]} 51. Kf2 {[%emt 0:00:03]} Kd4 {[%emt 0:00:03]} 52. Be8 {[%emt 0:02:46]} Kc4 {[%emt 0:01:13]} 53. b5 {[%emt 0:00:21]} Kc5 {[%emt 0:00:11]} 54. Bd7 {[%emt 0:00:12]} Bc4 {[%emt 0:00:14]} 55. Kxg2 {[%emt 0:00:55]} Bxb5 {[%emt 0:00:04]} 56. Bf5 {[%emt 0:00:26]} Kd4 {[%emt 0:00:54]} 57. Kf2 {[%emt 0:00:24]} Bc6 {[%emt 0:06:28]} 58. Ke2 {[%emt 0:01:17]} Kc3 {[%emt 0:00:58]} 59. Kd1 {[%emt 0:05:08]} b5 {[%emt 0:00:32]} 60. Kc1 {[%emt 0:05:03]} Bd5 {[%emt 0:00:16]} 61. Kb1 {[%emt 0:34:19]} b4 {[%emt 0:00:45]} 62. Bg6 {[%emt 0:00:50]} b3 {[%emt 0:00:56]} 63. Bf5 {[%emt 0:00:37]} Bf3 {[%emt 0:00:31]} 64. Kc1 {[%emt 0:02:47]} b2+ {[%emt 0:00:48]} 65. Kb1 {[%emt 0:00:09]} Kb3 {[%emt 0:00:02]} 66. Bg6 {[%emt 0:02:12]} Ka3 {[%emt 0:00:04]} 67. Kc2 {[%emt 0:00:35]} Ka2 {[%emt 0:00:10]} 68. Kc3 {[%emt 0:00:10]} Ka1 {[%emt 0:00:15]} 69. Kb3 {[%emt 0:01:37]} Bd5+ {[%emt 0:00:09]} 70. Ka3 {[%emt 0:00:11]} Ba2 {[%emt 0:00:18]} 71. Bc2 {[%emt 0:01:26]} Bb1 {[%emt 0:00:05]} 72. Bb3 {[%emt 0:00:09]} Be4 {[%emt 0:00:03]} 73. Ba2 {[%emt 0:00:25]} Bf5 0-1

[Event "POL-chT 2 Liga 2019"]
[Site "Poronin"]
[Date "2019.09.12"]
[Round "6.48"]
[White "Szelag, Zuzanna"]
[Black "Zarebska, Lena"]
[Result "0-1"]
[ECO "B34"]
[WhiteElo "1824"]
[BlackElo "1901"]
[Annotator "NA"]
[PlyCount "84"]
[EventDate "2019.09.07"]
[EventType "team-tourn"]
[EventCountry "POL"]
[SourceTitle "playchess.com"]
[Source "ChessBase"]
[SourceQuality "1"]
[TimeControl "40/5400+30:1800+30"]

1. e4 {[%emt 0:00:00]} c5 {[%emt 0:00:00]} 2. Nf3 {[%emt 0:00:00]} Nc6 {[%emt 0:00:00]} 3. d4 {[%emt 0:00:00]} cxd4 {[%emt 0:00:00]} 4. Nxd4 {[%emt 0:00:00]} Nf6 {[%emt 0:00:24]} 5. Nc3 {[%emt 0:00:00]} e5 {[%emt 0:00:07]} 6. Ndb5 {[%emt 0:00:15]} d6 {[%emt 0:00:31]} 7. Nd5 {[%emt 0:00:05]} Nxd5 {[%emt 0:00:15]} 8. exd5 {[%emt 0:00:05]} Ne7 {[%emt 0:00:41]} 9. c4 {[%emt 0:00:08]} Ng6 {[%emt 0:00:29]} 10. Qa4 {[%emt 0:00:23]} Bd7 {[%emt 0:01:16]} 11. Qb4 {[%emt 0:00:12]} Qb8 {[%emt 0:02:58]} 12. h4 {[%emt 0:03:16]} h5 {[%emt 0:00:12]} 13. Bg5 {[%emt 0:04:46]} a6 {[%emt 0:01:43]} 14. Nc3 {[%emt 0:01:15]} a5 {[%emt 0:25:39]} 15. Qb3 {[%emt 0:05:36]} a4 {[%emt 0:00:10]} 16. Qd1 {[%emt 0:08:57]} Be7 {[%emt 0:04:00]} 17. Bxe7 {[%emt 0:15:09]} Nxe7 {[%emt 0:00:08]} 18. Be2 {[%emt 0:01:50]} Qc7 {[%emt 0:02:37]} 19. Ne4 {[%emt 0:04:15]} Bf5 {[%emt 0:05:10]} 20. Ng5 {[%emt 0:03:00]} Qb6 {[%emt 0:09:45]} 21. Qd2 {[%emt 0:11:39]} Ng6 {[%emt 0:14:36]} 22. g3 {[%emt 0:07:04]} e4 {[%emt 0:05:22]} 23. Rd1 {[%emt 0:03:49]} Ne5 {[%emt 0:02:27]} 24. Qf4 {[%emt 0:03:07]} Bg6 {[%emt 0:07:53]} 25. Nxe4 {[%emt 0:01:53]} O-O {[%emt 0:01:45]} 26. O-O {[%emt 0:02:11]} Rfe8 {[%emt 0:01:25]} 27. Rd2 {[%emt 0:04:02]} Nxc4 {[%emt 0:02:02]} 28. Nf6+ {[%emt 0:00:15]} gxf6 {[%emt 0:00:16]} 29. Bxc4 {[%emt 0:01:49]} Re4 {[%emt 0:00:26]} 30. Qxf6 {[%emt 0:01:35]} Rxc4 {[%emt 0:00:06]} 31. Re1 {[%emt 0:00:49]} Qd8 {[%emt 0:00:06]} 32. Qf3 {[%emt 0:00:13]} Rac8 {[%emt 0:00:48]} 33. Rde2 {[%emt 0:01:06]} Rc1 {[%emt 0:00:23]} 34. Qf4 {[%emt 0:00:42]} Rxe1+ {[%emt 0:00:12]} 35. Rxe1 {[%emt 0:00:02]} Qd7 {[%emt 0:00:34]} 36. Qf6 {[%emt 0:01:44]} Re8 {[%emt 0:00:36]} 37. Rc1 {[%emt 0:00:39]} Re5 {[%emt 0:01:03]} 38. Rd1 {[%emt 0:01:07]} Qe8 {[%emt 0:00:34]} 39. Kh2 {[%emt 0:01:08]} Rf5 {[%emt 0:00:36]} 40. Qd4 {[%emt 0:00:00]} Qe2 {[%emt 0:00:00]} 41. Kg2 {[%emt 0:00:59]} Re5 {[%emt 0:01:59]} 42. b3 {[%emt 0:01:37]} Be4+ {[%emt 0:00:12]} 0-1

[Event "POL-chT 2 Liga 2019"]
[Site "Poronin"]
[Date "2019.09.12"]
[Round "6.49"]
[White "Mulet, Piotr"]
[Black "Psyk, Radoslaw"]
[Result "0-1"]
[ECO "B22"]
[WhiteElo "2230"]
[BlackElo "2314"]
[Annotator "NA"]
[PlyCount "54"]
[EventDate "2019.09.07"]
[EventType "team-tourn"]
[EventCountry "POL"]
[SourceTitle "playchess.com"]
[Source "ChessBase"]
[SourceQuality "1"]
[TimeControl "40/5400+30:1800+30"]

1. e4 {[%emt 0:00:00]} c5 {[%emt 0:01:39]} 2. c3 {[%emt 0:00:00]} g6 {[%emt 0:01:34]} 3. Bc4 {[%emt 0:00:03]} Bg7 {[%emt 0:18:01]} 4. Nf3 {[%emt 0:00:50]} Nc6 {[%emt 0:05:27]} 5. O-O {[%emt 0:06:52]} e6 {[%emt 0:08:35]} 6. d4 {[%emt 0:00:09]} cxd4 {[%emt 0:00:17]} 7. cxd4 {[%emt 0:00:24]} d5 {[%emt 0:00:34]} 8. exd5 {[%emt 0:01:56]} exd5 {[%emt 0:00:45]} 9. Bb5 {[%emt 0:01:07]} Nge7 {[%emt 0:00:22]} 10. Bg5 {[%emt 0:02:19]} O-O {[%emt 0:04:08]} 11. Bxc6 {[%emt 0:00:12]} bxc6 {[%emt 0:00:11]} 12. Re1 {[%emt 0:00:55]} f6 {[%emt 0:05:20]} 13. Bd2 {[%emt 0:06:42]} Rb8 {[%emt 0:02:47]} 14. b4 {[%emt 0:03:17]} Nf5 {[%emt 0:04:43]} 15. a3 {[%emt 0:01:51]} g5 {[%emt 0:06:20]} 16. Bc3 {[%emt 0:01:33]} Nd6 {[%emt 0:00:40]} 17. Nfd2 {[%emt 0:00:44]} g4 {[%emt 0:08:01]} 18. Nb3 {[%emt 0:03:02]} f5 {[%emt 0:00:54]} 19. Bd2 {[%emt 0:08:42]} f4 {[%emt 0:07:55]} 20. Qc1 {[%emt 0:00:09]} g3 {[%emt 0:03:37]} 21. hxg3 {[%emt 0:00:33]} fxg3 {[%emt 0:00:10]} 22. fxg3 {[%emt 0:00:10]} Nf5 {[%emt 0:00:20]} 23. Bf4 {[%emt 0:05:10]} Nxd4 {[%emt 0:02:03]} 24. Nxd4 {[%emt 0:01:21]} Bxd4+ {[%emt 0:00:05]} 25. Kh2 {[%emt 0:00:06]} Rf5 {[%emt 0:01:48]} 26. Re3 {[%emt 0:02:17]} Rxf4 {[%emt 0:02:23]} 27. gxf4 {[%emt 0:00:05]} Qh4+ {[%emt 0:00:14]} 0-1

[Event "POL-chT 2 Liga 2019"]
[Site "Poronin"]
[Date "2019.09.12"]
[Round "6.50"]
[White "Zochowski, Kacper"]
[Black "Galyga, Zbigniew"]
[Result "1-0"]
[ECO "A14"]
[WhiteElo "2267"]
[BlackElo "2117"]
[Annotator "NA"]
[PlyCount "83"]
[EventDate "2019.09.07"]
[EventType "team-tourn"]
[EventCountry "POL"]
[SourceTitle "playchess.com"]
[Source "ChessBase"]
[SourceQuality "1"]
[TimeControl "40/5400+30:1800+30"]

1. Nf3 {[%emt 0:01:08]} d5 {[%emt 0:00:00]} 2. c4 {[%emt 0:00:13]} e6 {[%emt 0:00:00]} 3. g3 {[%emt 0:00:05]} Nf6 {[%emt 0:00:00]} 4. Bg2 {[%emt 0:00:04]} Be7 {[%emt 0:00:00]} 5. O-O {[%emt 0:00:28]} O-O {[%emt 0:00:11]} 6. b3 {[%emt 0:00:18]} c5 {[%emt 0:00:36]} 7. Bb2 {[%emt 0:00:25]} Nc6 {[%emt 0:00:12]} 8. cxd5 {[%emt 0:03:44]} exd5 {[%emt 0:02:48]} 9. d4 {[%emt 0:00:14]} Be6 {[%emt 0:00:22]} 10. Nc3 {[%emt 0:01:34]} Rc8 {[%emt 0:02:33]} 11. dxc5 {[%emt 0:01:38]} Bxc5 {[%emt 0:01:43]} 12. Rc1 {[%emt 0:03:55]} Qe7 {[%emt 0:06:02]} 13. Nb5 {[%emt 0:06:28]} Ne4 {[%emt 0:03:39]} 14. Nfd4 {[%emt 0:04:17]} Rfd8 {[%emt 0:02:00]} 15. e3 {[%emt 0:19:27]} h6 {[%emt 0:25:26]} 16. Nxe6 {[%emt 0:03:53]} Qxe6 {[%emt 0:04:21]} 17. Qh5 {[%emt 0:08:36]} Bb6 {[%emt 0:06:28]} 18. Bh3 {[%emt 0:05:02]} Qe8 {[%emt 0:18:10]} 19. Bxc8 {[%emt 0:02:31]} Rxc8 {[%emt 0:13:02]} 20. Qg4 {[%emt 0:06:22]} g6 {[%emt 0:01:08]} 21. Nd4 {[%emt 0:07:33]} h5 {[%emt 0:02:31]} 22. Qd1 {[%emt 0:07:57]} Bxd4 {[%emt 0:02:31]} 23. Bxd4 {[%emt 0:01:55]} Qe6 {[%emt 0:00:41]} 24. f3 {[%emt 0:02:50]} Ng5 {[%emt 0:00:32]} 25. Qd2 {[%emt 0:01:06]} Re8 {[%emt 0:00:57]} 26. Kh1 {[%emt 0:04:13]} h4 {[%emt 0:01:21]} 27. gxh4 {[%emt 0:00:41]} Nh3 {[%emt 0:00:19]} 28. h5 {[%emt 0:02:06]} Ne7 {[%emt 0:01:16]} 29. Qg2 {[%emt 0:00:29]} Kh7 {[%emt 0:02:25]} 30. Qg4 {[%emt 0:00:36]} Qxg4 {[%emt 0:01:12]} 31. fxg4 {[%emt 0:00:03]} f5 {[%emt 0:00:21]} 32. Rc7 {[%emt 0:00:44]} Kh6 {[%emt 0:00:09]} 33. hxg6 {[%emt 0:00:29]} Kxg6 {[%emt 0:00:25]} 34. Kg2 {[%emt 0:01:33]} fxg4 {[%emt 0:00:58]} 35. Rf6+ {[%emt 0:00:06]} Kg5 {[%emt 0:00:12]} 36. Rd7 {[%emt 0:02:19]} b6 {[%emt 0:00:23]} 37. b4 {[%emt 0:00:54]} b5 {[%emt 0:00:31]} 38. a3 {[%emt 0:00:07]} a6 {[%emt 0:00:41]} 39. Kf1 {[%emt 0:01:08]} g3 {[%emt 0:01:05]} 40. hxg3 {[%emt 0:00:00]} Kg4 {[%emt 0:00:00]} 41. Kg2 {[%emt 0:08:57]} Nf5 {[%emt 0:02:54]} 42. Rxf5 {[%emt 0:01:25]} 1-0

[Event "POL-chT 2 Liga 2019"]
[Site "Poronin"]
[Date "2019.09.12"]
[Round "6.51"]
[White "Bachorczyk, Marcin"]
[Black "Wisniewski, Michal"]
[Result "1-0"]
[ECO "C44"]
[WhiteElo "2069"]
[BlackElo "2130"]
[Annotator "NA"]
[PlyCount "91"]
[EventDate "2019.09.07"]
[EventType "team-tourn"]
[EventCountry "POL"]
[SourceTitle "playchess.com"]
[Source "ChessBase"]
[SourceQuality "1"]
[TimeControl "40/5400+30:1800+30"]

1. e4 {[%emt 0:00:00]} Nf6 {[%emt 0:03:48]} 2. d3 {[%emt 0:00:00]} e5 {[%emt 0:00:04]} 3. Nf3 {[%emt 0:00:00]} Nc6 {[%emt 0:00:03]} 4. Nbd2 {[%emt 0:00:05]} d5 {[%emt 0:00:04]} 5. Be2 {[%emt 0:00:03]} Bc5 {[%emt 0:00:03]} 6. O-O {[%emt 0:00:05]} O-O {[%emt 0:00:03]} 7. c3 {[%emt 0:00:04]} a5 {[%emt 0:00:03]} 8. h3 {[%emt 0:03:43]} Re8 {[%emt 0:00:10]} 9. a4 {[%emt 0:07:17]} Ba7 {[%emt 0:00:23]} 10. Re1 {[%emt 0:02:39]} h6 {[%emt 0:00:06]} 11. Bf1 {[%emt 0:05:45]} Qd6 {[%emt 0:00:54]} 12. exd5 {[%emt 0:03:55]} Nxd5 {[%emt 0:00:42]} 13. Nc4 {[%emt 0:11:42]} Qf6 {[%emt 0:02:41]} 14. d4 {[%emt 0:13:47]} e4 {[%emt 0:04:06]} 15. Nfd2 {[%emt 0:07:02]} Bf5 {[%emt 0:09:29]} 16. Ne3 {[%emt 0:04:34]} Nxe3 {[%emt 0:00:58]} 17. Rxe3 {[%emt 0:06:28]} Nd8 {[%emt 0:12:05]} 18. Nc4 {[%emt 0:05:34]} Ne6 {[%emt 0:05:36]} 19. Qb3 {[%emt 0:01:38]} b6 {[%emt 0:05:06]} 20. Rg3 {[%emt 0:04:51]} Bb8 {[%emt 0:05:51]} 21. Qb5 {[%emt 0:06:51]} c6 {[%emt 0:02:20]} 22. Qxc6 {[%emt 0:00:12]} Bxg3 {[%emt 0:00:04]} 23. fxg3 {[%emt 0:00:10]} Rab8 {[%emt 0:01:30]} 24. Be3 Rec8 {[%emt 0:06:15]} 25. Qb5 {[%emt 0:06:11]} Nc7 {[%emt 0:00:11]} 26. Qe5 {[%emt 0:01:27]} Qxe5 {[%emt 0:00:34]} 27. dxe5 {[%emt 0:00:58]} Nd5 {[%emt 0:00:07]} 28. Bd4 {[%emt 0:00:21]} Rd8 {[%emt 0:04:50]} 29. Nd6 {[%emt 0:00:28]} Bg6 {[%emt 0:00:22]} 30. Bc4 {[%emt 0:00:26]} Ne7 {[%emt 0:01:21]} 31. Rf1 {[%emt 0:05:00]} Rf8 {[%emt 0:08:58]} 32. Bb5 {[%emt 0:01:30]} Rfd8 {[%emt 0:04:30]} 33. Bc4 {[%emt 0:00:06]} Rf8 {[%emt 0:00:04]} 34. Bb5 {[%emt 0:00:03]} Rfd8 {[%emt 0:00:04]} 35. g4 {[%emt 0:00:57]} h5 {[%emt 0:03:23]} 36. gxh5 {[%emt 0:01:09]} Bxh5 {[%emt 0:00:04]} 37. g4 {[%emt 0:00:35]} Bg6 {[%emt 0:00:04]} 38. Bc4 {[%emt 0:00:14]} Rf8 {[%emt 0:10:17]} 39. h4 {[%emt 0:00:08]} Nc8 {[%emt 0:00:01]} 40. h5 {[%emt 0:00:00]} Nxd6 {[%emt 0:00:00]} 41. exd6 {[%emt 0:01:45]} Bh7 {[%emt 0:00:07]} 42. g5 {[%emt 0:00:38]} Kh8 {[%emt 0:01:02]} 43. h6 {[%emt 0:03:35]} f6 {[%emt 0:00:02]} 44. gxf6 {[%emt 0:00:27]} gxf6 {[%emt 0:00:01]} 45. Rxf6 {[%emt 0:00:38]} Rxf6 {[%emt 0:00:06]} 46. Bxf6# {[%emt 0:00:03]} 1-0